fUSD/lending_fUSD_20260605
["ID","MTS","AMOUNT","RATE_DAILY","PERIOD"]
[424183841,1780632675000,-164.9986118,0.00038512,7]
[424183839,1780632675000,-1548.0,0.00038512,7]
[424183815,1780632675000,-5000.0,0.00038444,2]
[424183821,1780632675000,-300.0,0.00038459,51]
[424183817,1780632675000,-5000.0,0.00038444,7]
[424183819,1780632675000,-300.0,0.00038447,51]
[424183820,1780632675000,-300.0,0.00038455,51]
[424183823,1780632675000,-154.58600962,0.00038463,2]
[424183822,1780632675000,-300.0,0.00038462,51]
[424183818,1780632675000,-5000.0,0.00038444,2]
[424183824,1780632675000,-300.0,0.00038464,51]
[424183825,1780632675000,-300.0,0.00038465,51]
[424183826,1780632675000,-300.0,0.00038465,51]
[424183827,1780632675000,-314.27,0.00038466,51]
[424183816,1780632675000,-181.41283117,0.00038444,2]
[424183828,1780632675000,-323.41779569,0.0003847,2]
[424183850,1780632675000,-174.24112309,0.00038512,7]
[424183840,1780632675000,-1548.0,0.00038512,7]
[424183849,1780632675000,-151.0,0.00038512,7]
[424183831,1780632675000,-172.76,0.000385,21]
[424183829,1780632675000,-10000.0,0.000385,90]
[424183830,1780632675000,-172.76,0.000385,21]
[424183834,1780632675000,-166.58356952,0.000385,60]
[424183838,1780632675000,-1548.0,0.00038512,7]
[424183837,1780632675000,-1548.0,0.00038512,7]
[424183832,1780632675000,-585.8051947,0.000385,5]
[424183836,1780632675000,-1548.0,0.00038512,7]
[424183833,1780632675000,-166.50437971,0.000385,120]
[424183835,1780632675000,-240.96,0.000385,21]
[424183913,1780632676000,-500.0,0.00038816,14]
[424183916,1780632676000,-588.0,0.00038828,120]
[424183911,1780632676000,-51350.0,0.000388,30]
[424183910,1780632676000,-182.0,0.000388,120]
[424183907,1780632676000,-293.66731404,0.000388,30]
[424183908,1780632676000,-51289.16876074,0.000388,102]
[424183909,1780632676000,-250.08,0.000388,2]
[424183906,1780632676000,-169.069129,0.000388,22]
[424183899,1780632676000,-167.806141,0.000388,22]
[424183901,1780632676000,-219.807968,0.000388,22]
[424183902,1780632676000,-176.360263,0.000388,22]
[424183914,1780632676000,-202.56,0.0003882,14]
[424183920,1780632676000,-497.766924,0.00038828,120]
[424183918,1780632676000,-3256.72235593,0.00038828,120]
[424183917,1780632676000,-2000.0,0.00038828,120]
[424183912,1780632676000,-151.0,0.00038808,4]
[424183919,1780632676000,-1831.75017305,0.00038828,120]
[424183921,1780632676000,-3302.0,0.00038828,120]
[424183922,1780632676000,-1001.0,0.00038828,120]
[424183924,1780632676000,-535.0,0.00038828,120]
[424183934,1780632676000,-60406.33124803,0.00038846,2]
[424183925,1780632676000,-161.02709336,0.00038833,7]
[424183932,1780632676000,-60406.33124803,0.00038846,2]
[424183926,1780632676000,-216.0,0.00038833,120]
[424183905,1780632676000,-169.1241,0.000388,22]
[424183915,1780632676000,-2200.57460003,0.00038828,120]
[424183903,1780632676000,-212.251242,0.000388,22]
[424183884,1780632676000,-707.9,0.000387,120]
[424183900,1780632676000,-183.916988,0.000388,22]
[424183875,1780632676000,-300.0,0.0003863,120]
[424183873,1780632676000,-211.66061129,0.0003863,2]
[424183874,1780632676000,-423.32122257,0.0003863,2]
[424183877,1780632676000,-19436.8553,0.0003864,30]
[424183887,1780632676000,-152.0,0.00038702,5]
[424183876,1780632676000,-268.380359,0.0003863,120]
[424183879,1780632676000,-154.58600962,0.00038663,2]
[424183878,1780632676000,-4836.7,0.00038657,2]
[424183886,1780632676000,-151.0,0.000387,120]
[424183880,1780632676000,-160.0,0.000387,21]
[424183881,1780632676000,-305.43,0.000387,21]
[424183882,1780632676000,-160.0,0.000387,21]
[424183885,1780632676000,-2355.88,0.000387,120]
[424183883,1780632676000,-328.93,0.000387,21]
[424183890,1780632676000,-229.31506439,0.00038748,120]
[424183888,1780632676000,-1844.98,0.00038707,120]
[424183893,1780632676000,-500.0,0.0003877,2]
[424183897,1780632676000,-160.303594,0.000388,22]
[424183895,1780632676000,-15214.14942766,0.0003878,7]
[424183892,1780632676000,-154.58600962,0.00038763,2]
[424183891,1780632676000,-647.89832043,0.00038748,120]
[424183894,1780632676000,-1000.0,0.0003877,2]
[424183889,1780632676000,-1576.74,0.00038707,120]
[424183898,1780632676000,-240.296466,0.000388,22]
[424183896,1780632676000,-15214.14942766,0.00038799,7]
[424183904,1780632676000,-167.803539,0.000388,22]
[424183933,1780632676000,-60406.33124803,0.00038846,2]
[424183923,1780632676000,-1818.0,0.00038828,120]
[424183927,1780632676000,-2091.0,0.00038833,120]
[424183960,1780632676000,-929.49,0.00038976,10]
[424183962,1780632676000,-43401.41,0.00038999,14]
[424183964,1780632676000,-900.0,0.00039,60]
[424183966,1780632676000,-800.0,0.00039,45]
[424183965,1780632676000,-164.85,0.00039,7]
[424183967,1780632676000,-800.0,0.00039,45]
[424183968,1780632676000,-800.0,0.00039,45]
[424183969,1780632676000,-800.0,0.00039,45]
[424183978,1780632676000,-800.0,0.00039,45]
[424183976,1780632676000,-800.0,0.00039,45]
[424183977,1780632676000,-800.0,0.00039,45]
[424183970,1780632676000,-800.0,0.00039,45]
[424183971,1780632676000,-800.0,0.00039,45]
[424183972,1780632676000,-800.0,0.00039,45]
[424183973,1780632676000,-73588.10948529,0.00039,30]
[424183975,1780632676000,-800.0,0.00039,45]
[424183974,1780632676000,-800.0,0.00039,45]
[424183980,1780632676000,-800.0,0.00039,45]
[424183983,1780632676000,-450.0,0.00039,120]
[424183982,1780632676000,-157799.7408274,0.00039,120]
[424183981,1780632676000,-21693.37209563,0.00039,120]
[424183985,1780632676000,-10000.0,0.00039,120]
[424183984,1780632676000,-2050.45369881,0.00039,120]
[424183986,1780632676000,-216920.71599699,0.00039,120]
[424183930,1780632676000,-20165.87949159,0.00038833,120]
[424183961,1780632676000,-150.0,0.00038999,2]
[424183963,1780632676000,-150.0,0.00039,6]
[424183979,1780632676000,-800.0,0.00039,45]
[424183956,1780632676000,-154.58600962,0.00038963,2]
[424183931,1780632676000,-60406.33124803,0.00038846,2]
[424183959,1780632676000,-150.0,0.00038976,2]
[424183928,1780632676000,-688.0,0.00038833,120]
[424183929,1780632676000,-7098.67862995,0.00038833,120]
[424183935,1780632676000,-158.19552394,0.00038846,2]
[424183936,1780632676000,-154.58600962,0.00038863,2]
[424183939,1780632676000,-2054.17084605,0.0003888,60]
[424183941,1780632676000,-433.13473827,0.000389,120]
[424183937,1780632676000,-165.0,0.0003888,120]
[424183940,1780632676000,-100000.0,0.00038899,14]
[424183944,1780632676000,-436.38,0.00038904,2]
[424183942,1780632676000,-1454.6,0.00038904,30]
[424183945,1780632676000,-500.0,0.00038904,120]
[424183938,1780632676000,-163.0,0.0003888,120]
[424183948,1780632676000,-500.0,0.00038904,120]
[424183947,1780632676000,-500.0,0.00038904,120]
[424183950,1780632676000,-500.0,0.00038904,120]
[424183943,1780632676000,-5000.0,0.00038904,120]
[424183952,1780632676000,-5000.0,0.00038953,2]
[424183954,1780632676000,-1008.0,0.00038954,120]
[424183953,1780632676000,-250.0,0.00038953,2]
[424183949,1780632676000,-500.0,0.00038904,120]
[424183951,1780632676000,-261.02094254,0.00038904,120]
[424183955,1780632676000,-264.58,0.0003896,113]
[424183946,1780632676000,-500.0,0.00038904,120]
[424183958,1780632676000,-1000.0,0.0003897,2]
[424183957,1780632676000,-500.0,0.0003897,2]
[424184024,1780632677000,-500.0,0.00039,14]
[424184028,1780632677000,-200.216718,0.00039,22]
[424184021,1780632677000,-500.0,0.00039,14]
[424184042,1780632677000,-637.32164579,0.00039,30]
[424184029,1780632677000,-10839.50152,0.00039,120]
[424184025,1780632677000,-500.0,0.00039,14]
[424184020,1780632677000,-500.0,0.00039,14]
[424184026,1780632677000,-379.5,0.00039,14]
[424184018,1780632677000,-500.0,0.00039,14]
[424184023,1780632677000,-500.0,0.00039,14]
[424184034,1780632677000,-637.3216458,0.00039,30]
[424184027,1780632677000,-160.333639,0.00039,22]
[424184035,1780632677000,-637.3216458,0.00039,30]
[424184051,1780632677000,-637.32164579,0.00039,30]
[424184037,1780632677000,-637.32164579,0.00039,30]
[424184040,1780632677000,-637.32164579,0.00039,30]
[424184033,1780632677000,-150.0,0.00039,100]
[424184041,1780632677000,-637.32164579,0.00039,30]
[424184032,1780632677000,-160.082016,0.00039,22]
[424184031,1780632677000,-200.268774,0.00039,22]
[424184030,1780632677000,-240.35978,0.00039,22]
[424184036,1780632677000,-637.3216458,0.00039,30]
[424184038,1780632677000,-637.32164579,0.00039,30]
[424184044,1780632677000,-637.32164579,0.00039,30]
[424184054,1780632677000,-151.0,0.00039,60]
[424184043,1780632677000,-637.32164579,0.00039,30]
[424184022,1780632677000,-500.0,0.00039,14]
[424184039,1780632677000,-637.32164579,0.00039,30]
[424184019,1780632677000,-500.0,0.00039,14]
[424183988,1780632677000,-2741.35902723,0.00039,120]
[424184014,1780632677000,-500.0,0.00039,14]
[424184046,1780632677000,-637.32164579,0.00039,30]
[424183991,1780632677000,-800.0,0.00039,45]
[424183990,1780632677000,-800.0,0.00039,45]
[424183987,1780632677000,-164412.64334181,0.00039,120]
[424183989,1780632677000,-9908.47865466,0.00039,5]
[424183993,1780632677000,-235.18,0.00039,60]
[424183992,1780632677000,-214.19,0.00039,60]
[424184003,1780632677000,-2000.0,0.00039,60]
[424183994,1780632677000,-1000.0,0.00039,120]
[424183995,1780632677000,-1000.0,0.00039,120]
[424184004,1780632677000,-30427.87962158,0.00039,120]
[424183997,1780632677000,-5000.0,0.00039,7]
[424183996,1780632677000,-41225.92499252,0.00039,30]
[424184017,1780632677000,-500.0,0.00039,14]
[424183998,1780632677000,-5000.0,0.00039,7]
[424184000,1780632677000,-5000.0,0.00039,7]
[424184002,1780632677000,-5000.0,0.00039,7]
[424184007,1780632677000,-80000.0,0.00039,30]
[424184005,1780632677000,-460.15107791,0.00039,4]
[424184012,1780632677000,-500.0,0.00039,14]
[424184011,1780632677000,-500.0,0.00039,14]
[424184006,1780632677000,-2574.6650153,0.00039,30]
[424184008,1780632677000,-200.09,0.00039,22]
[424184009,1780632677000,-500.0,0.00039,14]
[424184010,1780632677000,-500.0,0.00039,14]
[424184013,1780632677000,-500.0,0.00039,14]
[424184015,1780632677000,-500.0,0.00039,14]
[424184016,1780632677000,-500.0,0.00039,14]
[424183999,1780632677000,-5000.0,0.00039,7]
[424184045,1780632677000,-637.32164579,0.00039,30]
[424184001,1780632677000,-5000.0,0.00039,7]
[424184050,1780632677000,-637.32164579,0.00039,30]
[424184092,1780632677000,-800.0,0.00039007,120]
[424184093,1780632677000,-800.0,0.00039007,120]
[424184084,1780632677000,-153.89720939,0.00039007,2]
[424184090,1780632677000,-800.0,0.00039007,120]
[424184085,1780632677000,-153.89720939,0.00039007,2]
[424184087,1780632677000,-167105.57067963,0.00039007,120]
[424184086,1780632677000,-175325.15067075,0.00039007,120]
[424184088,1780632677000,-800.0,0.00039007,120]
[424184091,1780632677000,-800.0,0.00039007,120]
[424184089,1780632677000,-800.0,0.00039007,120]
[424184094,1780632677000,-800.0,0.00039007,120]
[424184111,1780632677000,-1124.0,0.00039007,30]
[424184097,1780632677000,-800.0,0.00039007,120]
[424184081,1780632677000,-276.43618742,0.00039006,120]
[424184096,1780632677000,-800.0,0.00039007,120]
[424184098,1780632677000,-800.0,0.00039007,120]
[424184101,1780632677000,-5256.60219644,0.00039007,30]
[424184100,1780632677000,-800.0,0.00039007,120]
[424184103,1780632677000,-845.0,0.00039007,120]
[424184102,1780632677000,-865.0,0.00039007,30]
[424184104,1780632677000,-150.0,0.00039007,7]
[424184105,1780632677000,-2878.361,0.00039007,32]
[424184106,1780632677000,-52109.84848261,0.00039007,2]
[424184108,1780632677000,-25000.0,0.00039007,120]
[424184107,1780632677000,-224.7477796,0.00039007,2]
[424184109,1780632677000,-1124.0,0.00039007,30]
[424184110,1780632677000,-1124.0,0.00039007,30]
[424184047,1780632677000,-637.32164579,0.00039,30]
[424184099,1780632677000,-800.0,0.00039007,120]
[424184083,1780632677000,-2555.0,0.00039007,120]
[424184095,1780632677000,-800.0,0.00039007,120]
[424184079,1780632677000,-531.0,0.00039005,120]
[424184082,1780632677000,-2760.0,0.00039007,120]
[424184052,1780632677000,-637.32164579,0.00039,30]
[424184053,1780632677000,-637.32164579,0.00039,30]
[424184049,1780632677000,-637.32164579,0.00039,30]
[424184048,1780632677000,-637.32164579,0.00039,30]
[424184058,1780632677000,-7546.50936814,0.00039,2]
[424184057,1780632677000,-150.0,0.00039,2]
[424184056,1780632677000,-12816.36056298,0.00039,2]
[424184062,1780632677000,-159.069907,0.00039,120]
[424184059,1780632677000,-200.0,0.00039,16]
[424184063,1780632677000,-876.288872,0.00039,22]
[424184061,1780632677000,-500.0,0.00039,60]
[424184064,1780632677000,-353.21892906,0.00039,2]
[424184060,1780632677000,-500.0,0.00039,60]
[424184055,1780632677000,-150.0,0.00039,2]
[424184066,1780632677000,-281.7,0.00039001,30]
[424184074,1780632677000,-693.39197629,0.00039001,2]
[424184065,1780632677000,-483.39,0.00039,30]
[424184078,1780632677000,-1139.0,0.00039005,120]
[424184080,1780632677000,-175.73675625,0.00039006,120]
[424184072,1780632677000,-226.99436707,0.00039001,120]
[424184076,1780632677000,-250.0,0.00039005,7]
[424184075,1780632677000,-864.78058953,0.00039001,2]
[424184077,1780632677000,-733.0,0.00039005,120]
[424184071,1780632677000,-180.36927676,0.00039001,120]
[424184069,1780632677000,-170.52432814,0.00039001,120]
[424184070,1780632677000,-213.29146759,0.00039001,120]
[424184068,1780632677000,-546.89849902,0.00039001,120]
[424184067,1780632677000,-422.55,0.00039001,120]
[424184073,1780632677000,-304.34025799,0.00039001,120]
[424184139,1780632678000,-315.81337737,0.00039007,120]
[424184137,1780632678000,-315.81337737,0.00039007,120]
[424184144,1780632678000,-18074.1224196,0.00039007,30]
[424184135,1780632678000,-315.81337737,0.00039007,120]
[424184136,1780632678000,-315.81337737,0.00039007,120]
[424184138,1780632678000,-315.81337737,0.00039007,120]
[424184142,1780632678000,-161.5117,0.00039007,120]
[424184152,1780632678000,-513.69204255,0.00039007,120]
[424184143,1780632678000,-172.68457022,0.00039007,120]
[424184141,1780632678000,-13640.97283093,0.00039007,31]
[424184149,1780632678000,-1561.22,0.00039007,120]
[424184146,1780632678000,-667.6469,0.00039007,120]
[424184150,1780632678000,-513.69204255,0.00039007,120]
[424184148,1780632678000,-178.6620124,0.00039007,120]
[424184151,1780632678000,-513.69204255,0.00039007,120]
[424184147,1780632678000,-152.42,0.00039007,30]
[424184156,1780632678000,-513.69204254,0.00039007,120]
[424184153,1780632678000,-513.69204255,0.00039007,120]
[424184134,1780632678000,-171.18672706,0.00039007,120]
[424184155,1780632678000,-513.69204255,0.00039007,120]
[424184145,1780632678000,-3823.897532,0.00039007,90]
[424184132,1780632678000,-218.55847566,0.00039007,120]
[424184119,1780632678000,-72311.69,0.00039007,30]
[424184140,1780632678000,-315.81337737,0.00039007,120]
[424184164,1780632678000,-193.11747524,0.00039007,2]
[424184113,1780632678000,-249.56,0.00039007,120]
[424184114,1780632678000,-330.65478329,0.00039007,90]
[424184116,1780632678000,-9932.3278881,0.00039007,120]
[424184115,1780632678000,-1000.0,0.00039007,120]
[424184118,1780632678000,-8435.22838353,0.00039007,60]
[424184117,1780632678000,-5168.5642692,0.00039007,60]
[424184112,1780632678000,-566.35,0.00039007,120]
[424184121,1780632678000,-50000.0,0.00039007,50]
[424184133,1780632678000,-315.81337737,0.00039007,120]
[424184120,1780632678000,-50000.0,0.00039007,49]
[424184123,1780632678000,-50000.0,0.00039007,52]
[424184122,1780632678000,-50000.0,0.00039007,51]
[424184127,1780632678000,-1095.33607136,0.00039007,2]
[424184128,1780632678000,-5000.0,0.00039007,39]
[424184126,1780632678000,-30044.35778106,0.00039007,2]
[424184125,1780632678000,-1237.45725875,0.00039007,120]
[424184130,1780632678000,-218.55847566,0.00039007,120]
[424184129,1780632678000,-315.81337737,0.00039007,120]
[424184131,1780632678000,-171.18672706,0.00039007,120]
[424184124,1780632678000,-150.0,0.00039007,2]
[424184154,1780632678000,-513.69204255,0.00039007,120]
[424184157,1780632678000,-513.69204254,0.00039007,120]
[424184159,1780632678000,-9307.55921576,0.00039007,120]
[424184183,1780632678000,-500.0,0.00039007,120]
[424184182,1780632678000,-500.0,0.00039007,120]
[424184184,1780632678000,-500.0,0.00039007,120]
[424184187,1780632678000,-500.0,0.00039007,120]
[424184190,1780632678000,-500.0,0.00039007,120]
[424184189,1780632678000,-500.0,0.00039007,120]
[424184191,1780632678000,-500.0,0.00039007,120]
[424184192,1780632678000,-500.0,0.00039007,120]
[424184200,1780632678000,-500.0,0.00039007,120]
[424184185,1780632678000,-500.0,0.00039007,120]
[424184196,1780632678000,-500.0,0.00039007,120]
[424184199,1780632678000,-500.0,0.00039007,120]
[424184194,1780632678000,-338.87782167,0.00039007,120]
[424184197,1780632678000,-500.0,0.00039007,120]
[424184195,1780632678000,-500.0,0.00039007,120]
[424184198,1780632678000,-500.0,0.00039007,120]
[424184203,1780632678000,-500.0,0.00039007,60]
[424184204,1780632678000,-500.0,0.00039007,60]
[424184202,1780632678000,-525.82875768,0.00039007,120]
[424184205,1780632678000,-592.10590116,0.00039007,60]
[424184193,1780632678000,-500.0,0.00039007,120]
[424184186,1780632678000,-500.0,0.00039007,120]
[424184201,1780632678000,-500.0,0.00039007,120]
[424184178,1780632678000,-500.0,0.00039007,120]
[424184188,1780632678000,-500.0,0.00039007,120]
[424184162,1780632678000,-251.09824124,0.00039007,120]
[424184160,1780632678000,-206.52660989,0.00039007,120]
[424184163,1780632678000,-9348.85937744,0.00039007,120]
[424184158,1780632678000,-474.083295,0.00039007,31]
[424184161,1780632678000,-206.52660989,0.00039007,120]
[424184173,1780632678000,-500.0,0.00039007,120]
[424184166,1780632678000,-501.02350217,0.00039007,120]
[424184172,1780632678000,-500.0,0.00039007,120]
[424184176,1780632678000,-410.70096386,0.00039007,120]
[424184171,1780632678000,-500.0,0.00039007,120]
[424184175,1780632678000,-500.0,0.00039007,120]
[424184165,1780632678000,-500.0,0.00039007,120]
[424184169,1780632678000,-500.0,0.00039007,120]
[424184167,1780632678000,-500.0,0.00039007,120]
[424184170,1780632678000,-500.0,0.00039007,120]
[424184168,1780632678000,-500.0,0.00039007,120]
[424184177,1780632678000,-500.0,0.00039007,120]
[424184179,1780632678000,-500.0,0.00039007,120]
[424184181,1780632678000,-500.0,0.00039007,120]
[424184174,1780632678000,-500.0,0.00039007,120]
[424184180,1780632678000,-500.0,0.00039007,120]
[424184247,1780632679000,-500.0,0.00039007,120]
[424184249,1780632679000,-500.0,0.00039007,120]
[424184245,1780632679000,-500.0,0.00039007,120]
[424184242,1780632679000,-500.0,0.00039007,120]
[424184253,1780632679000,-500.0,0.00039007,120]
[424184234,1780632679000,-500.0,0.00039007,120]
[424184246,1780632679000,-273.90492846,0.00039007,120]
[424184243,1780632679000,-500.0,0.00039007,120]
[424184230,1780632679000,-500.0,0.00039007,120]
[424184248,1780632679000,-500.0,0.00039007,120]
[424184239,1780632679000,-500.0,0.00039007,120]
[424184244,1780632679000,-500.0,0.00039007,120]
[424184250,1780632679000,-500.0,0.00039007,120]
[424184261,1780632679000,-500.0,0.00039007,120]
[424184251,1780632679000,-500.0,0.00039007,120]
[424184254,1780632679000,-500.0,0.00039007,120]
[424184255,1780632679000,-500.0,0.00039007,120]
[424184264,1780632679000,-500.0,0.00039007,120]
[424184256,1780632679000,-500.0,0.00039007,120]
[424184258,1780632679000,-500.0,0.00039007,120]
[424184259,1780632679000,-500.0,0.00039007,120]
[424184265,1780632679000,-500.0,0.00039007,120]
[424184263,1780632679000,-500.0,0.00039007,120]
[424184260,1780632679000,-500.0,0.00039007,120]
[424184257,1780632679000,-500.0,0.00039007,120]
[424184262,1780632679000,-500.0,0.00039007,120]
[424184236,1780632679000,-338.69140325,0.00039007,120]
[424184252,1780632679000,-500.0,0.00039007,120]
[424184235,1780632679000,-500.0,0.00039007,120]
[424184206,1780632679000,-500.0,0.00039007,120]
[424184237,1780632679000,-500.0,0.00039007,120]
[424184215,1780632679000,-500.0,0.00039007,120]
[424184207,1780632679000,-500.0,0.00039007,120]
[424184213,1780632679000,-500.0,0.00039007,120]
[424184211,1780632679000,-500.0,0.00039007,120]
[424184208,1780632679000,-500.0,0.00039007,120]
[424184212,1780632679000,-570.34199238,0.00039007,120]
[424184210,1780632679000,-500.0,0.00039007,120]
[424184214,1780632679000,-500.0,0.00039007,120]
[424184268,1780632679000,-500.0,0.00039007,120]
[424184209,1780632679000,-500.0,0.00039007,120]
[424184217,1780632679000,-500.0,0.00039007,120]
[424184227,1780632679000,-500.0,0.00039007,120]
[424184228,1780632679000,-500.0,0.00039007,120]
[424184218,1780632679000,-500.0,0.00039007,120]
[424184225,1780632679000,-500.0,0.00039007,120]
[424184216,1780632679000,-500.0,0.00039007,120]
[424184222,1780632679000,-500.0,0.00039007,120]
[424184224,1780632679000,-500.0,0.00039007,120]
[424184220,1780632679000,-500.0,0.00039007,120]
[424184219,1780632679000,-500.0,0.00039007,120]
[424184221,1780632679000,-500.0,0.00039007,120]
[424184223,1780632679000,-500.0,0.00039007,120]
[424184226,1780632679000,-500.0,0.00039007,120]
[424184229,1780632679000,-500.0,0.00039007,120]
[424184233,1780632679000,-500.0,0.00039007,120]
[424184232,1780632679000,-500.0,0.00039007,120]
[424184231,1780632679000,-500.0,0.00039007,120]
[424184241,1780632679000,-500.0,0.00039007,120]
[424184238,1780632679000,-500.0,0.00039007,120]
[424184240,1780632679000,-500.0,0.00039007,120]
[424184266,1780632679000,-500.0,0.00039007,120]
[424184267,1780632679000,-260.12678327,0.00039007,120]
[424184277,1780632679000,-500.0,0.00039007,120]
[424184304,1780632679000,-500.0,0.00039007,120]
[424184306,1780632679000,-895.07,0.00039007,120]
[424184310,1780632679000,-500.0,0.00039007,120]
[424184307,1780632679000,-895.07,0.00039007,120]
[424184308,1780632679000,-500.0,0.00039007,120]
[424184305,1780632679000,-895.07,0.00039007,120]
[424184309,1780632679000,-895.07,0.00039007,120]
[424184315,1780632679000,-895.07,0.00039007,120]
[424184311,1780632679000,-895.07,0.00039007,120]
[424184314,1780632679000,-500.0,0.00039007,120]
[424184316,1780632679000,-500.0,0.00039007,120]
[424184312,1780632679000,-500.0,0.00039007,120]
[424184313,1780632679000,-895.07,0.00039007,120]
[424184318,1780632679000,-500.0,0.00039007,120]
[424184329,1780632679000,-500.0,0.00039007,120]
[424184328,1780632679000,-500.0,0.00039007,120]
[424184327,1780632679000,-500.0,0.00039007,120]
[424184323,1780632679000,-500.0,0.00039007,120]
[424184321,1780632679000,-500.0,0.00039007,120]
[424184320,1780632679000,-500.0,0.00039007,120]
[424184317,1780632679000,-895.07,0.00039007,120]
[424184319,1780632679000,-895.07,0.00039007,120]
[424184326,1780632679000,-500.0,0.00039007,120]
[424184324,1780632679000,-500.0,0.00039007,120]
[424184322,1780632679000,-895.07,0.00039007,120]
[424184325,1780632679000,-895.07774487,0.00039007,120]
[424184331,1780632679000,-500.0,0.00039007,120]
[424184330,1780632679000,-500.0,0.00039007,120]
[424184269,1780632679000,-500.0,0.00039007,120]
[424184300,1780632679000,-500.0,0.00039007,120]
[424184301,1780632679000,-895.07,0.00039007,120]
[424184332,1780632679000,-500.0,0.00039007,120]
[424184298,1780632679000,-500.0,0.00039007,120]
[424184299,1780632679000,-895.07,0.00039007,120]
[424184276,1780632679000,-500.0,0.00039007,120]
[424184271,1780632679000,-500.0,0.00039007,120]
[424184274,1780632679000,-500.0,0.00039007,120]
[424184272,1780632679000,-500.0,0.00039007,120]
[424184270,1780632679000,-500.0,0.00039007,120]
[424184273,1780632679000,-500.0,0.00039007,120]
[424184278,1780632679000,-500.0,0.00039007,120]
[424184281,1780632679000,-500.0,0.00039007,120]
[424184283,1780632679000,-500.0,0.00039007,120]
[424184282,1780632679000,-500.0,0.00039007,120]
[424184280,1780632679000,-500.0,0.00039007,120]
[424184285,1780632679000,-476.65635628,0.00039007,120]
[424184284,1780632679000,-500.0,0.00039007,120]
[424184275,1780632679000,-500.0,0.00039007,120]
[424184289,1780632679000,-895.07,0.00039007,120]
[424184296,1780632679000,-500.0,0.00039007,120]
[424184286,1780632679000,-895.07,0.00039007,120]
[424184293,1780632679000,-895.07,0.00039007,120]
[424184294,1780632679000,-895.07,0.00039007,120]
[424184295,1780632679000,-895.07,0.00039007,120]
[424184303,1780632679000,-895.07,0.00039007,120]
[424184297,1780632679000,-895.07,0.00039007,120]
[424184291,1780632679000,-895.07,0.00039007,120]
[424184287,1780632679000,-895.07,0.00039007,120]
[424184302,1780632679000,-500.0,0.00039007,120]
[424184279,1780632679000,-500.0,0.00039007,120]
[424184290,1780632679000,-895.07,0.00039007,120]
[424184292,1780632679000,-500.0,0.00039007,120]
[424184288,1780632679000,-895.07,0.00039007,120]
[424184365,1780632680000,-500.0,0.00039007,120]
[424184357,1780632680000,-500.0,0.00039007,120]
[424184362,1780632680000,-500.0,0.00039007,120]
[424184367,1780632680000,-500.0,0.00039007,120]
[424184368,1780632680000,-156.07115497,0.00039007,120]
[424184373,1780632680000,-621.37571537,0.00039007,120]
[424184370,1780632680000,-500.0,0.00039007,120]
[424184374,1780632680000,-591.74,0.00039007,120]
[424184375,1780632680000,-591.74,0.00039007,120]
[424184372,1780632680000,-500.0,0.00039007,120]
[424184371,1780632680000,-591.74,0.00039007,120]